[Event "*** MasterClass Titled Tuesday Blitz"]
[Site "Chess.com"]
[Date "2017.11.07"]
[Round "7"]
[White "DanielNaroditsky"]
[Black "yurisolo"]
[Result "0-1"]
[WhiteElo "2722"]
[BlackElo "2615"]
[TimeControl "180+2"]
[EndTime "15:41:51 PST"]
[Termination "yurisolo won by resignation"]

1. d4 {[%clk 0:03:01.9]} 1... Nf6 {[%clk 0:03:00.5]} 2. Nf3 {[%clk 0:03:03.6]}
2... c5 {[%clk 0:03:01.3]} 3. d5 {[%clk 0:03:04.7]} 3... b5 {[%clk 0:03:01.7]}
4. Bg5 {[%clk 0:03:04.7]} 4... Qb6 {[%clk 0:03:01.8]} 5. Bxf6 {[%clk 0:03:02.4]}
5... Qxf6 {[%clk 0:03:03.7]} 6. e4 {[%clk 0:03:03.7]} 6... Qxb2 {[%clk
0:03:00.3]} 7. Nbd2 {[%clk 0:03:04.8]} 7... g6 {[%clk 0:02:51.5]} 8. e5 {[%clk
0:02:56.8]} 8... Bh6 {[%clk 0:02:25.6]} 9. Be2 {[%clk 0:01:43.5]} 9... Bxd2+
{[%clk 0:02:25.1]} 10. Nxd2 {[%clk 0:01:44]} 10... Qxe5 {[%clk 0:02:26.5]} 11.
O-O {[%clk 0:01:44.9]} 11... Bb7 {[%clk 0:02:07.6]} 12. c4 {[%clk 0:01:41.9]}
12... d6 {[%clk 0:01:53.3]} 13. Re1 {[%clk 0:01:37.7]} 13... Qd4 {[%clk
0:01:52.1]} 14. Bf1 {[%clk 0:01:28.7]} 14... bxc4 {[%clk 0:01:34.7]} 15. Qa4+
{[%clk 0:01:16.6]} 15... Kf8 {[%clk 0:01:31.7]} 16. Nxc4 {[%clk 0:01:16.7]}
16... Bxd5 {[%clk 0:00:57.4]} 17. Rad1 {[%clk 0:01:06.9]} 17... Bc6 {[%clk
0:00:58]} 18. Qa5 {[%clk 0:01:07.4]} 18... Qf6 {[%clk 0:00:56.5]} 19. Qc7 {[%clk
0:00:58.2]} 19... d5 {[%clk 0:00:56.4]} 20. Ne5 {[%clk 0:00:51.7]} 20... Kg7
{[%clk 0:00:56.7]} 21. Ng4 {[%clk 0:00:39.3]} 21... Qd6 {[%clk 0:00:55.8]} 22.
Rxe7 {[%clk 0:00:40.8]} 22... Qxc7 {[%clk 0:00:53.3]} 23. Rxc7 {[%clk
0:00:42.7]} 23... Rd8 {[%clk 0:00:36.1]} 24. Ne5 {[%clk 0:00:37.9]} 24... Ba4
{[%clk 0:00:24.8]} 25. Rxf7+ {[%clk 0:00:23.5]} 25... Kg8 {[%clk 0:00:25.2]} 26.
Re1 {[%clk 0:00:21.7]} 26... Nc6 {[%clk 0:00:13.3]} 27. Rc7 {[%clk 0:00:17]}
27... Rac8 {[%clk 0:00:10]} 28. Nxc6 {[%clk 0:00:11.8]} 28... Bxc6 {[%clk
0:00:09.7]} 29. Rxa7 {[%clk 0:00:13.5]} 29... d4 {[%clk 0:00:08.7]} 30. Ree7
{[%clk 0:00:11.7]} 30... Bd5 {[%clk 0:00:08.3]} 31. Rg7+ {[%clk 0:00:09.8]}
31... Kf8 {[%clk 0:00:09.6]} 32. Rxh7 {[%clk 0:00:11.1]} 32... c4 {[%clk
0:00:08.6]} 33. h4 {[%clk 0:00:05.2]} 33... d3 {[%clk 0:00:09.4]} 34. h5 {[%clk
0:00:05.9]} 34... gxh5 {[%clk 0:00:10.2]} 35. Rxh5 {[%clk 0:00:07.3]} 35... d2
{[%clk 0:00:07.6]} 36. Be2 {[%clk 0:00:07.2]} 36... c3 {[%clk 0:00:07.5]} 37.
Rf5+ {[%clk 0:00:05.2]} 37... Kg8 {[%clk 0:00:08.8]} 38. Rg5+ {[%clk 0:00:06.3]}
38... Kf8 {[%clk 0:00:10.1]} 39. Rf5+ {[%clk 0:00:07.4]} 39... Kg8 {[%clk
0:00:11.4]} 40. Rg5+ {[%clk 0:00:06.7]} 40... Kf8 {[%clk 0:00:12.2]} 41. Bd1
{[%clk 0:00:05.7]} 41... Rd6 {[%clk 0:00:07.7]} 42. Rf5+ {[%clk 0:00:05.4]}
42... Ke8 {[%clk 0:00:06.8]} 43. Re5+ {[%clk 0:00:04.3]} 43... Be6 {[%clk
0:00:06.7]} 44. Bc2 {[%clk 0:00:02.3]} 44... d1=Q+ {[%clk 0:00:07.3]} 45. Bxd1
{[%clk 0:00:04]} 45... Rxd1+ {[%clk 0:00:08.8]} 46. Kh2 {[%clk 0:00:05.9]} 46...
Rd6 {[%clk 0:00:10.3]} 47. Rh5 {[%clk 0:00:07.8]} 47... Kf8 {[%clk 0:00:10.2]}
48. f4 {[%clk 0:00:02.8]} 48... c2 {[%clk 0:00:11.1]} 49. f5 {[%clk 0:00:04.4]}
49... c1=Q {[%clk 0:00:11.6]} 50. fxe6 {[%clk 0:00:06]} 50... Qf4+ {[%clk
0:00:12.6]} 51. g3 {[%clk 0:00:07.7]} 51... Rd2+ {[%clk 0:00:12.6]} 52. Kh3
{[%clk 0:00:09.6]} 52... Qf1+ {[%clk 0:00:13.9]} 53. Kh4 {[%clk 0:00:11]} 53...
Rc4+ {[%clk 0:00:15.3]} 54. g4 {[%clk 0:00:12.6]} 54... Qf6+ {[%clk 0:00:15.9]}
55. Rg5 {[%clk 0:00:14.3]} 55... Qh6+ {[%clk 0:00:15.8]} 56. Kg3 {[%clk
0:00:16.2]} 0-1

[Event "*** MasterClass Titled Tuesday Blitz"]
[Site "Chess.com"]
[Date "2017.11.07"]
[Round "7"]
[White "champ2005"]
[Black "matej2221"]
[Result "0-1"]
[WhiteElo "2450"]
[BlackElo "2093"]
[TimeControl "180+2"]
[EndTime "15:41:56 PST"]
[Termination "matej2221 won by resignation"]

1. e4 {[%clk 0:03:01.9]} 1... e5 {[%clk 0:03:00.8]} 2. Nf3 {[%clk 0:03:02.9]}
2... Nc6 {[%clk 0:03:02]} 3. Bb5 {[%clk 0:03:03.5]} 3... a6 {[%clk 0:03:02.9]}
4. Ba4 {[%clk 0:03:04.5]} 4... Nge7 {[%clk 0:03:04.1]} 5. O-O {[%clk 0:03:04.1]}
5... g6 {[%clk 0:03:05.3]} 6. c3 {[%clk 0:03:04]} 6... Bg7 {[%clk 0:03:06.2]} 7.
d4 {[%clk 0:03:04.9]} 7... exd4 {[%clk 0:03:07.1]} 8. cxd4 {[%clk 0:03:05.6]}
8... b5 {[%clk 0:03:08.6]} 9. Bb3 {[%clk 0:03:04.2]} 9... O-O {[%clk 0:03:09.4]}
10. d5 {[%clk 0:02:58]} 10... Na5 {[%clk 0:03:10.2]} 11. Bc2 {[%clk 0:02:59.2]}
11... d6 {[%clk 0:03:09.7]} 12. Nc3 {[%clk 0:02:50.7]} 12... Bb7 {[%clk
0:03:07.2]} 13. Rb1 {[%clk 0:02:42.1]} 13... Nc4 {[%clk 0:02:55.3]} 14. b3
{[%clk 0:02:39.9]} 14... Nb6 {[%clk 0:02:53.6]} 15. Bb2 {[%clk 0:02:39.1]} 15...
c6 {[%clk 0:02:51.3]} 16. dxc6 {[%clk 0:02:39]} 16... Nxc6 {[%clk 0:02:49]} 17.
Ne2 {[%clk 0:02:23]} 17... Bxb2 {[%clk 0:02:43.5]} 18. Rxb2 {[%clk 0:02:24.9]}
18... Qf6 {[%clk 0:02:31.3]} 19. Rb1 {[%clk 0:02:22.1]} 19... Nb4 {[%clk
0:02:24.3]} 20. a3 {[%clk 0:02:16.9]} 20... Nxc2 {[%clk 0:02:23.9]} 21. Qxc2
{[%clk 0:02:18.2]} 21... Rfe8 {[%clk 0:02:11.1]} 22. Ng3 {[%clk 0:02:16.7]}
22... Rac8 {[%clk 0:02:07.9]} 23. Qe2 {[%clk 0:01:42.5]} 23... Nd5 {[%clk
0:02:06.6]} 24. Qd3 {[%clk 0:01:23]} 24... Nf4 {[%clk 0:01:42.7]} 25. Qe3 {[%clk
0:00:51.9]} 25... Rc3 {[%clk 0:01:23.4]} 26. Qd4 {[%clk 0:00:39.4]} 26... Qxd4
{[%clk 0:00:56.2]} 27. Nxd4 {[%clk 0:00:41.3]} 27... Bxe4 {[%clk 0:00:55.4]} 28.
Rbe1 {[%clk 0:00:31.3]} 28... Bc6 {[%clk 0:00:50.1]} 29. Rxe8+ {[%clk
0:00:25.8]} 29... Bxe8 {[%clk 0:00:52]} 30. Ne4 {[%clk 0:00:24.8]} 30... Rd3
{[%clk 0:00:51.3]} 31. Nf6+ {[%clk 0:00:18.1]} 31... Kf8 {[%clk 0:00:49.6]} 32.
Nf3 {[%clk 0:00:19.1]} 32... Bc6 {[%clk 0:00:41.1]} 33. Nxh7+ {[%clk 0:00:16.2]}
33... Kg7 {[%clk 0:00:41.6]} 34. Nhg5 {[%clk 0:00:17.4]} 34... f6 {[%clk
0:00:26.5]} 35. Ne1 {[%clk 0:00:17.5]} 35... Rxb3 {[%clk 0:00:17.7]} 36. Ngf3
{[%clk 0:00:18.3]} 36... Bxf3 {[%clk 0:00:12.3]} 37. Nxf3 {[%clk 0:00:19]} 37...
Rxa3 {[%clk 0:00:12.5]} 38. Rd1 {[%clk 0:00:19.9]} 38... d5 {[%clk 0:00:11.1]}
39. h3 {[%clk 0:00:19.1]} 39... Nxh3+ {[%clk 0:00:10]} 40. Kh2 {[%clk
0:00:19.7]} 40... Nxf2 {[%clk 0:00:09.6]} 41. Rxd5 {[%clk 0:00:19.6]} 41... Ng4+
{[%clk 0:00:10.5]} 42. Kg3 {[%clk 0:00:20.2]} 42... Ne5 {[%clk 0:00:11.6]} 43.
Kf4 {[%clk 0:00:21.6]} 43... Nxf3 {[%clk 0:00:12.1]} 44. gxf3 {[%clk 0:00:23.5]}
44... b4 {[%clk 0:00:11.2]} 45. Rd7+ {[%clk 0:00:24.4]} 45... Kh6 {[%clk
0:00:12.4]} 46. Rd6 {[%clk 0:00:25.5]} 46... a5 {[%clk 0:00:10.1]} 47. Rxf6
{[%clk 0:00:26.5]} 47... b3 {[%clk 0:00:11]} 48. Rb6 {[%clk 0:00:27.4]} 48...
Ra4+ {[%clk 0:00:10.2]} 49. Ke5 {[%clk 0:00:28.1]} 49... Rb4 {[%clk 0:00:10.8]}
50. Ra6 {[%clk 0:00:21.1]} 50... b2 {[%clk 0:00:11]} 0-1

[Event "*** MasterClass Titled Tuesday Blitz"]
[Site "Chess.com"]
[Date "2017.11.07"]
[Round "7"]
[White "Shivagami"]
[Black "VladDobrov"]
[Result "0-1"]
[WhiteElo "2066"]
[BlackElo "2646"]
[TimeControl "180+2"]
[EndTime "15:41:59 PST"]
[Termination "VladDobrov won by checkmate"]

1. d4 {[%clk 0:03:01.9]} 1... Nf6 {[%clk 0:02:55.3]} 2. Bf4 {[%clk 0:03:00.6]}
2... Nh5 {[%clk 0:02:51.4]} 3. Bg5 {[%clk 0:02:58.5]} 3... h6 {[%clk 0:02:51.8]}
4. Bh4 {[%clk 0:02:59.2]} 4... g5 {[%clk 0:02:48.6]} 5. e3 {[%clk 0:02:57.2]}
5... Nf6 {[%clk 0:02:47.3]} 6. Bg3 {[%clk 0:02:57.9]} 6... d6 {[%clk 0:02:48.3]}
7. h3 {[%clk 0:02:54.2]} 7... c5 {[%clk 0:02:47.5]} 8. c3 {[%clk 0:02:53.9]}
8... Nc6 {[%clk 0:02:38.6]} 9. Nd2 {[%clk 0:02:52.7]} 9... Bg7 {[%clk
0:02:30.7]} 10. Bd3 {[%clk 0:02:51.4]} 10... b6 {[%clk 0:02:25.4]} 11. Ne2
{[%clk 0:02:49.2]} 11... Bb7 {[%clk 0:02:25.6]} 12. O-O {[%clk 0:02:36.2]} 12...
h5 {[%clk 0:02:17.3]} 13. a3 {[%clk 0:02:33.3]} 13... h4 {[%clk 0:02:17.9]} 14.
Bh2 {[%clk 0:02:32.5]} 14... g4 {[%clk 0:02:19.1]} 15. Nf4 {[%clk 0:02:30.1]}
15... e5 {[%clk 0:02:16.3]} 16. Ne2 {[%clk 0:02:21.7]} 16... Qe7 {[%clk
0:02:14.3]} 17. Nc4 {[%clk 0:02:11.7]} 17... gxh3 {[%clk 0:02:02.2]} 18. gxh3
{[%clk 0:02:07.3]} 18... Rg8 {[%clk 0:02:02.2]} 19. f3 {[%clk 0:02:03.8]} 19...
O-O-O {[%clk 0:01:47.8]} 20. Bf5+ {[%clk 0:02:03.3]} 20... Kb8 {[%clk
0:01:47.8]} 21. Kf2 {[%clk 0:02:02.2]} 21... cxd4 {[%clk 0:01:23.5]} 22. cxd4
{[%clk 0:01:59.3]} 22... Nd5 {[%clk 0:01:24.3]} 23. e4 {[%clk 0:01:36.7]} 23...
exd4 {[%clk 0:00:47.3]} 24. exd5 {[%clk 0:01:32.8]} 24... Na5 {[%clk 0:00:48.1]}
25. Nxa5 {[%clk 0:00:52.4]} 25... Bh6 {[%clk 0:00:45.8]} 26. Qxd4 {[%clk
0:00:34.3]} 26... Be3+ {[%clk 0:00:44]} 27. Qxe3 {[%clk 0:00:31.9]} 27... Rg2+
{[%clk 0:00:45.3]} 28. Kxg2 {[%clk 0:00:32.9]} 28... Qxe3 {[%clk 0:00:46.6]} 29.
Rae1 {[%clk 0:00:28.5]} 29... Rg8+ {[%clk 0:00:46.2]} 30. Bg4 {[%clk 0:00:25.3]}
30... bxa5 {[%clk 0:00:44.4]} 31. Bf4 {[%clk 0:00:26.4]} 31... Qd3 {[%clk
0:00:42.1]} 32. Nc3 {[%clk 0:00:24.7]} 32... f5 {[%clk 0:00:40.8]} 33. Bxd6+
{[%clk 0:00:25.6]} 33... Ka8 {[%clk 0:00:40]} 34. Rd1 {[%clk 0:00:21.1]} 34...
Qc4 {[%clk 0:00:40.4]} 35. Rfe1 {[%clk 0:00:18.6]} 35... fxg4 {[%clk 0:00:27.7]}
36. hxg4 {[%clk 0:00:20.5]} 36... Qb3 {[%clk 0:00:25]} 37. Rd2 {[%clk
0:00:20.1]} 37... a4 {[%clk 0:00:23.8]} 38. Bb4 {[%clk 0:00:20.3]} 38... Qc4
{[%clk 0:00:23.8]} 39. Re4 {[%clk 0:00:19.2]} 39... Qc8 {[%clk 0:00:24.1]} 40.
Re7 {[%clk 0:00:17.5]} 40... a5 {[%clk 0:00:20.8]} 41. Bxa5 {[%clk 0:00:15.7]}
41... Rxg4+ {[%clk 0:00:21.3]} 42. fxg4 {[%clk 0:00:15.5]} 42... Qxg4+ {[%clk
0:00:23.2]} 43. Kh2 {[%clk 0:00:16.5]} 43... Qf4+ {[%clk 0:00:23.5]} 44. Kh3
{[%clk 0:00:16.3]} 44... Bc8+ {[%clk 0:00:23.7]} 45. Kg2 {[%clk 0:00:15.9]}
45... Qxd2+ {[%clk 0:00:24.7]} 46. Re2 {[%clk 0:00:14.3]} 46... Qg5+ {[%clk
0:00:23.5]} 47. Kh2 {[%clk 0:00:14.5]} 47... Qg3+ {[%clk 0:00:23.7]} 48. Kh1
{[%clk 0:00:14.6]} 48... Bg4 {[%clk 0:00:24.8]} 49. Re8+ {[%clk 0:00:12.4]}
49... Kb7 {[%clk 0:00:25.8]} 50. Re7+ {[%clk 0:00:11.5]} 50... Ka6 {[%clk
0:00:26]} 51. Rf7 {[%clk 0:00:09.2]} 51... h3 {[%clk 0:00:22.8]} 52. d6 {[%clk
0:00:08]} 52... Qg2# {[%clk 0:00:22]} 0-1

[Event "*** MasterClass Titled Tuesday Blitz"]
[Site "Chess.com"]
[Date "2017.11.07"]
[Round "7"]
[White "Cherone"]
[Black "bugsbunny444"]
[Result "0-1"]
[WhiteElo "2442"]
[BlackElo "2422"]
[TimeControl "180+2"]
[EndTime "15:42:02 PST"]
[Termination "bugsbunny444 won by checkmate"]

1. e4 {[%clk 0:03:01.9]} 1... b6 {[%clk 0:03:00]} 2. d4 {[%clk 0:03:02.1]} 2...
Bb7 {[%clk 0:03:01.9]} 3. Bd3 {[%clk 0:03:00.6]} 3... e6 {[%clk 0:03:03.2]} 4.
Nf3 {[%clk 0:02:59.6]} 4... d6 {[%clk 0:03:04.1]} 5. O-O {[%clk 0:03:00.1]} 5...
Nd7 {[%clk 0:03:05.6]} 6. c4 {[%clk 0:03:00.2]} 6... g6 {[%clk 0:03:07]} 7. Nc3
{[%clk 0:03:01]} 7... Bg7 {[%clk 0:03:08.4]} 8. Be3 {[%clk 0:02:46.8]} 8... Ne7
{[%clk 0:03:08]} 9. Rc1 {[%clk 0:02:43.2]} 9... h6 {[%clk 0:03:05.9]} 10. b4
{[%clk 0:02:43.8]} 10... O-O {[%clk 0:02:55.2]} 11. Qd2 {[%clk 0:02:37.8]} 11...
Kh7 {[%clk 0:02:55.7]} 12. Bb1 {[%clk 0:02:38.6]} 12... g5 {[%clk 0:02:26.8]}
13. Ne1 {[%clk 0:02:16.9]} 13... Ng6 {[%clk 0:02:22.9]} 14. Nd3 {[%clk
0:02:14.5]} 14... Nf6 {[%clk 0:02:21.3]} 15. f4 {[%clk 0:02:00.4]} 15... Nxe4
{[%clk 0:02:19.8]} 16. Nxe4 {[%clk 0:01:59.4]} 16... Bxe4 {[%clk 0:02:20.8]} 17.
fxg5 {[%clk 0:02:00.1]} 17... hxg5 {[%clk 0:02:16.7]} 18. Bxg5 {[%clk
0:02:00.5]} 18... f6 {[%clk 0:01:54.1]} 19. Be3 {[%clk 0:01:55.5]} 19... f5
{[%clk 0:01:54.2]} 20. Nf4 {[%clk 0:01:35.9]} 20... Nxf4 {[%clk 0:01:42.2]} 21.
Bxe4 {[%clk 0:01:34.9]} 21... fxe4 {[%clk 0:01:43.1]} 22. Bxf4 {[%clk
0:01:22.8]} 22... Qh4 {[%clk 0:01:39.7]} 23. Bg3 {[%clk 0:01:19.9]} 23... Qh6
{[%clk 0:01:27.6]} 24. Qxh6+ {[%clk 0:01:06.5]} 24... Kxh6 {[%clk 0:01:23.7]}
25. d5 {[%clk 0:01:02.7]} 25... Bd4+ {[%clk 0:00:56.3]} 26. Kh1 {[%clk
0:00:58.5]} 26... e5 {[%clk 0:00:57.2]} 27. Rfe1 {[%clk 0:00:48.7]} 27... e3
{[%clk 0:00:57.8]} 28. Re2 {[%clk 0:00:50.1]} 28... Rf7 {[%clk 0:00:46.7]} 29.
h3 {[%clk 0:00:51]} 29... Raf8 {[%clk 0:00:46.5]} 30. Kg1 {[%clk 0:00:48.2]}
30... Kg5 {[%clk 0:00:34.1]} 31. Rce1 {[%clk 0:00:43.9]} 31... Kf5 {[%clk
0:00:26.1]} 32. Rxe3 {[%clk 0:00:41.4]} 32... Kg5 {[%clk 0:00:22.6]} 33. Kh2
{[%clk 0:00:39.2]} 33... Bxe3 {[%clk 0:00:20.9]} 34. Rxe3 {[%clk 0:00:41]} 34...
Rf1 {[%clk 0:00:21.8]} 35. Ra3 {[%clk 0:00:41.6]} 35... Rc1 {[%clk 0:00:20]} 36.
Rxa7 {[%clk 0:00:09.1]} 36... Rff1 {[%clk 0:00:20.8]} 37. Bf2 {[%clk 0:00:10.5]}
37... Rxf2 {[%clk 0:00:12]} 38. Rxc7 {[%clk 0:00:11.6]} 38... Rcc2 {[%clk
0:00:11.3]} 39. Rg7+ {[%clk 0:00:12.1]} 39... Kh6 {[%clk 0:00:10.7]} 40. Rg4
{[%clk 0:00:14]} 40... Rxa2 {[%clk 0:00:10.1]} 41. h4 {[%clk 0:00:14.1]} 41...
Kh5 {[%clk 0:00:08.5]} 42. Kh3 {[%clk 0:00:13.9]} 42... Ra3+ {[%clk 0:00:07.9]}
43. g3 {[%clk 0:00:14.9]} 43... Raa2 {[%clk 0:00:07.5]} 44. Rg5+ {[%clk
0:00:16.1]} 44... Kh6 {[%clk 0:00:08.7]} 45. c5 {[%clk 0:00:17.2]} 45... bxc5
{[%clk 0:00:09.4]} 46. bxc5 {[%clk 0:00:19]} 46... Rh2+ {[%clk 0:00:10]} 47. Kg4
{[%clk 0:00:19.6]} 47... dxc5 {[%clk 0:00:08.5]} 48. Rxe5 {[%clk 0:00:20.7]}
48... Rae2 {[%clk 0:00:09.2]} 49. Rg5 {[%clk 0:00:18.9]} 49... c4 {[%clk
0:00:09.2]} 50. d6 {[%clk 0:00:19.6]} 50... Rd2 {[%clk 0:00:06.8]} 51. Rh5+
{[%clk 0:00:20.8]} 51... Kg6 {[%clk 0:00:07.6]} 52. Rc5 {[%clk 0:00:22.7]} 52...
Rd4+ {[%clk 0:00:08.1]} 53. Kf3 {[%clk 0:00:24]} 53... Rhd2 {[%clk 0:00:08.9]}
54. Rc6 {[%clk 0:00:18.8]} 54... Kf5 {[%clk 0:00:08.6]} 55. d7 {[%clk 0:00:17]}
55... R4d3# {[%clk 0:00:09.2]} 0-1

[Event "*** MasterClass Titled Tuesday Blitz"]
[Site "Chess.com"]
[Date "2017.11.07"]
[Round "7"]
[White "Grebeniuk-S"]
[Black "Vamostodorecto"]
[Result "1-0"]
[WhiteElo "2429"]
[BlackElo "2290"]
[TimeControl "180+2"]
[EndTime "15:42:31 PST"]
[Termination "Grebeniuk-S won on time"]

1. d4 {[%clk 0:03:01.9]} 1... Nf6 {[%clk 0:02:56.8]} 2. Nf3 {[%clk 0:03:02.8]}
2... g6 {[%clk 0:02:58.1]} 3. Bg5 {[%clk 0:03:03.7]} 3... Bg7 {[%clk 0:03:00]}
4. Nbd2 {[%clk 0:03:05.2]} 4... d5 {[%clk 0:02:59.9]} 5. Bxf6 {[%clk 0:03:06]}
5... Bxf6 {[%clk 0:02:59.8]} 6. e4 {[%clk 0:03:07.3]} 6... dxe4 {[%clk
0:02:59.2]} 7. Nxe4 {[%clk 0:03:09.2]} 7... Bg7 {[%clk 0:03:00.5]} 8. c3 {[%clk
0:03:10.5]} 8... b6 {[%clk 0:02:57.2]} 9. Bc4 {[%clk 0:03:11]} 9... O-O {[%clk
0:02:56.8]} 10. O-O {[%clk 0:03:11.9]} 10... Bb7 {[%clk 0:02:57]} 11. Re1 {[%clk
0:03:13.3]} 11... Nd7 {[%clk 0:02:57.6]} 12. Qe2 {[%clk 0:03:13.5]} 12... c5
{[%clk 0:02:58.4]} 13. dxc5 {[%clk 0:03:13.6]} 13... bxc5 {[%clk 0:02:53.7]} 14.
Neg5 {[%clk 0:03:02.4]} 14... e5 {[%clk 0:02:48.8]} 15. Nxf7 {[%clk 0:02:48.5]}
15... Rxf7 {[%clk 0:02:39.3]} 16. Rad1 {[%clk 0:02:49.1]} 16... Bxf3 {[%clk
0:02:28.6]} 17. Bxf7+ {[%clk 0:02:43.5]} 17... Kxf7 {[%clk 0:02:25.8]} 18. Qxf3+
{[%clk 0:02:44.8]} 18... Ke7 {[%clk 0:02:13.6]} 19. Qb7 {[%clk 0:02:39.9]} 19...
Rc8 {[%clk 0:02:08.3]} 20. Qxa7 {[%clk 0:02:32]} 20... Qc7 {[%clk 0:02:04.4]}
21. Qa4 {[%clk 0:02:24.1]} 21... Nf6 {[%clk 0:01:52.1]} 22. h3 {[%clk
0:02:19.1]} 22... e4 {[%clk 0:01:47.2]} 23. Qc4 {[%clk 0:02:13.4]} 23... Kf8
{[%clk 0:01:43.1]} 24. Rd2 {[%clk 0:02:11.8]} 24... Re8 {[%clk 0:01:42.3]} 25.
b4 {[%clk 0:02:04.3]} 25... Qf4 {[%clk 0:01:41.2]} 26. Rde2 {[%clk 0:01:57]}
26... cxb4 {[%clk 0:01:39.8]} 27. cxb4 {[%clk 0:01:58]} 27... g5 {[%clk
0:01:16]} 28. b5 {[%clk 0:01:25]} 28... g4 {[%clk 0:01:03.7]} 29. g3 {[%clk
0:01:24.6]} 29... Qd6 {[%clk 0:00:41]} 30. hxg4 {[%clk 0:01:17.3]} 30... Bh6
{[%clk 0:00:36.7]} 31. Qc6 {[%clk 0:01:04.9]} 31... Qxc6 {[%clk 0:00:36.3]} 32.
bxc6 {[%clk 0:01:06.8]} 32... e3 {[%clk 0:00:37.9]} 33. f3 {[%clk 0:01:05.5]}
33... Rc8 {[%clk 0:00:35.3]} 34. Rc2 {[%clk 0:01:04]} 34... Nd5 {[%clk
0:00:34.1]} 35. f4 {[%clk 0:01:00.3]} 35... Bg7 {[%clk 0:00:27.5]} 36. Kg2
{[%clk 0:00:48.9]} 36... Bc3 {[%clk 0:00:21.3]} 37. Rd1 {[%clk 0:00:44.5]} 37...
Bd2 {[%clk 0:00:19.6]} 38. Kf3 {[%clk 0:00:37.2]} 38... Nc3 {[%clk 0:00:11.9]}
39. Rxc3 {[%clk 0:00:17.8]} 39... Bxc3 {[%clk 0:00:13.8]} 40. Kxe3 {[%clk
0:00:18]} 40... Rxc6 {[%clk 0:00:14.5]} 41. Rd7 {[%clk 0:00:19.4]} 41... Bg7
{[%clk 0:00:12.4]} 42. f5 {[%clk 0:00:17.9]} 42... h6 {[%clk 0:00:10.7]} 43. Ke4
{[%clk 0:00:15.6]} 43... Rc4+ {[%clk 0:00:10.9]} 44. Kf3 {[%clk 0:00:15.9]}
44... Ra4 {[%clk 0:00:10.6]} 45. Rd2 {[%clk 0:00:15.7]} 45... Ra3+ {[%clk
0:00:10.4]} 46. Kg2 {[%clk 0:00:16.9]} 46... Bf6 {[%clk 0:00:08.8]} 47. Kh3
{[%clk 0:00:17.5]} 47... Kg7 {[%clk 0:00:08.8]} 48. Rc2 {[%clk 0:00:18.2]} 48...
Be5 {[%clk 0:00:09.1]} 49. Rg2 {[%clk 0:00:17.1]} 49... Kf6 {[%clk 0:00:10.2]}
50. Kh4 {[%clk 0:00:18.1]} 50... Kg7 {[%clk 0:00:06]} 51. g5 {[%clk 0:00:18]}
51... hxg5+ {[%clk 0:00:02.1]} 52. Kxg5 {[%clk 0:00:19.2]} 52... Bxg3 {[%clk
0:00:02.7]} 53. Rc2 {[%clk 0:00:17.7]} 53... Kf7 {[%clk 0:00:02.6]} 54. Rb2
{[%clk 0:00:16.8]} 54... Be5 {[%clk 0:00:03.1]} 55. Rb7+ {[%clk 0:00:17.2]}
55... Kf8 {[%clk 0:00:03.5]} 56. Rb5 {[%clk 0:00:17.5]} 56... Re3 {[%clk
0:00:03.6]} 57. a4 {[%clk 0:00:16.8]} 57... Re1 {[%clk 0:00:02.8]} 58. f6 {[%clk
0:00:16.7]} 1-0